bitfinex/quotes_BTCUSD_20220105
["timestamp","ask_amount","ask_price","bid_price","bid_amount"]
[1641379730230,0.068502,46741.0,46739.0,0.353812]
[1641379731478,0.053502,46741.0,46739.0,0.353812]
[1641379732277,0.083502,46741.0,46739.0,0.355812]
[1641379733278,0.083502,46741.0,46739.0,0.61129573]
[1641379733481,0.00121041,46751.0,46740.0,1.77333162]
[1641379733780,0.5,46751.0,46745.0,0.053488]
[1641379734183,0.537,46751.0,46745.0,0.053488]
[1641379734832,0.037,46751.0,46747.0,0.053489]
[1641379735028,0.037,46751.0,46745.0,0.053488]
[1641379735428,0.66866599,46756.0,46745.0,0.101388]
[1641379735730,0.106977,46750.0,46746.0,0.29679589]
[1641379736435,0.169977,46750.0,46746.0,0.29879589]
[1641379736832,0.169977,46750.0,46748.0,0.053488]
[1641379737429,0.106977,46750.0,46748.0,0.053488]
[1641379738276,0.174977,46750.0,46748.0,0.053488]
[1641379738481,0.174977,46750.0,46749.0,0.93]
[1641379739080,0.174977,46750.0,46748.0,0.053488]
[1641379739582,0.106977,46750.0,46748.0,0.053488]
[1641379740180,0.155977,46750.0,46748.0,0.056488]
[1641379740579,0.155977,46750.0,46749.0,1.07875717]
[1641379741578,0.106977,46750.0,46749.0,1.07875717]
[1641379741779,0.106977,46750.0,46749.0,0.29875717]
[1641379742235,0.160977,46750.0,46749.0,0.30175717]
[1641379743527,0.106977,46750.0,46749.0,0.29875717]
[1641379744428,0.160977,46750.0,46749.0,0.30175717]
[1641379745027,0.054,46750.0,46749.0,0.66175717]
[1641379745428,0.054,46750.0,46749.0,0.30175717]
[1641379745629,0.053488,46752.0,46749.0,0.053487]
[1641379746278,0.115488,46752.0,46749.0,0.053487]
[1641379747280,0.115488,46752.0,46749.0,0.10697189]
[1641379747679,0.053488,46752.0,46749.0,0.053487]
[1641379748280,0.110488,46752.0,46749.0,0.054487]
[1641379748482,0.110488,46752.0,46749.0,0.10797287]
[1641379749535,0.053488,46752.0,46749.0,0.10697287]
[1641379750332,0.109488,46752.0,46749.0,0.10897287]
[1641379751534,0.053488,46752.0,46749.0,0.10697287]
[1641379752234,0.109488,46752.0,46749.0,0.10797287]
[1641379752435,0.109488,46752.0,46749.0,0.16145687]
[1641379752638,0.109488,46752.0,46749.0,0.10797287]
[1641379753482,0.053488,46752.0,46749.0,0.10697287]
[1641379754478,0.053488,46752.0,46749.0,0.10897287]
[1641379754479,0.109488,46752.0,46749.0,0.10897287]
[1641379755478,0.109488,46752.0,46749.0,0.10697287]
[1641379755677,0.053488,46752.0,46749.0,0.10697287]
[1641379756378,0.062488,46752.0,46749.0,0.11097287]
[1641379757433,0.062488,46752.0,46749.0,0.16445687]
[1641379757636,0.053488,46752.0,46749.0,0.16045687]
[1641379758436,0.065488,46752.0,46749.0,0.44529238]
[1641379759035,0.065488,46752.0,46749.0,0.39180838]
[1641379759637,0.065488,46752.0,46749.0,0.38480838]
[1641379759638,0.053488,46752.0,46749.0,0.38480838]
[1641379759835,0.053488,46752.0,46749.0,0.43480838]
[1641379760439,0.065488,46752.0,46749.0,0.44180838]
[1641379761486,0.065488,46752.0,46749.0,0.16397287]
[1641379761683,0.053488,46752.0,46749.0,0.053487]
[1641379761883,0.35507233,46751.0,46741.0,1.15169421]
[1641379762084,0.053496,46748.0,46742.0,0.64177]
[1641379762285,0.053496,46748.0,46743.0,0.353812]
[1641379762683,0.053496,46748.0,46742.0,0.64177]
[1641379762883,0.053496,46748.0,46743.0,0.053496]
[1641379763584,0.053496,46746.0,46743.0,0.053496]
[1641379764384,0.066496,46746.0,46743.0,0.053496]
[1641379765633,0.053496,46746.0,46744.0,0.353812]
[1641379766033,0.053496,46746.0,46744.0,0.4073051]
[1641379766436,0.067496,46746.0,46744.0,0.4073051]
[1641379766633,0.067496,46746.0,46744.0,0.353812]
[1641379767437,0.067496,46746.0,46743.0,0.053496]
[1641379768280,0.053496,46746.0,46743.0,0.053496]
[1641379768483,0.064496,46746.0,46743.0,0.053496]
[1641379768681,0.064496,46746.0,46742.0,0.64177]
[1641379769580,0.053496,46746.0,46742.0,0.64177]
[1641379769782,0.3595507,46745.0,46742.0,0.64177]
[1641379769981,0.3595517,46745.0,46742.0,0.64177]
[1641379770380,0.3715517,46745.0,46742.0,0.64177]
[1641379770782,0.77428071,46745.0,46742.0,0.64177]
[1641379770989,0.77554529,46745.0,46742.0,0.64177]
[1641379771583,0.46081628,46745.0,46742.0,0.64177]
[1641379771782,0.75867396,46745.0,46742.0,0.64177]
[1641379772037,0.053501,46744.0,46742.0,0.64177]
[1641379773440,0.29879713,46743.0,46742.0,0.64177]
[1641379774439,0.31179713,46743.0,46742.0,0.64177]
[1641379774640,0.41179713,46743.0,46742.0,0.64177]
[1641379775041,0.113,46743.0,46742.0,0.64177]
[1641379775639,0.5,46743.0,46742.0,0.64177]
[1641379775882,0.6,46743.0,46742.0,0.64177]
[1641379776482,0.612,46743.0,46742.0,0.64177]
[1641379777682,0.6,46743.0,46742.0,0.64177]
[1641379778482,0.612,46743.0,46742.0,0.64177]
[1641379779733,0.6,46743.0,46742.0,0.64177]
[1641379780436,0.612,46743.0,46742.0,0.64177]
[1641379781439,0.512,46743.0,46742.0,0.64177]
[1641379781634,0.058061,46745.0,46742.0,0.64177]
[1641379782535,0.073061,46745.0,46742.0,0.64177]
[1641379783687,0.058061,46745.0,46742.0,0.64177]
[1641379784387,0.074061,46745.0,46742.0,0.64177]
[1641379785788,0.058061,46745.0,46742.0,0.64177]
[1641379786389,0.074061,46745.0,46742.0,0.64177]
[1641379787639,0.058061,46745.0,46742.0,0.64177]
[1641379787839,0.108061,46745.0,46742.0,0.64177]
[1641379788541,0.124061,46745.0,46742.0,0.64177]
[1641379788740,0.074061,46745.0,46742.0,0.64177]
[1641379789442,0.053501,46744.0,46742.0,0.64177]
[1641379790542,0.065501,46744.0,46742.0,0.64177]
[1641379791786,0.053501,46744.0,46742.0,0.64177]
[1641379792384,0.065501,46744.0,46742.0,0.64177]
[1641379793485,0.012,46744.0,46742.0,0.64177]
[1641379793687,0.058061,46745.0,46742.0,0.64177]
[1641379794543,0.073061,46745.0,46742.0,0.64177]
[1641379795743,0.058061,46745.0,46742.0,0.64177]
[1641379795945,0.40905955,46745.0,46742.0,0.64177]
[1641379796145,0.05350751,46744.0,46742.0,0.64177]
[1641379796343,0.107008,46744.0,46742.0,0.64177]
[1641379796544,0.103501,46744.0,46742.0,0.64177]
[1641379798587,0.114501,46744.0,46742.0,0.64177]
[1641379798788,0.064501,46744.0,46742.0,0.64177]
[1641379799692,0.053501,46744.0,46742.0,0.64177]
[1641379800091,0.058061,46745.0,46742.0,0.64177]
[1641379800293,0.5,46744.0,46742.0,0.64177]
[1641379800494,0.511,46744.0,46742.0,0.64177]
[1641379800893,0.49070863,46744.0,46742.0,0.64177]
[1641379801091,0.011,46744.0,46742.0,0.64177]
[1641379801292,0.011,46744.0,46742.0,0.91519825]
[1641379801791,0.058061,46745.0,46742.0,0.64177]
[1641379802035,0.058061,46745.0,46742.0,0.7437603]
[1641379802338,0.058061,46745.0,46743.0,0.353812]
[1641379802535,0.076061,46745.0,46743.0,0.353812]
[1641379802934,0.076061,46745.0,46742.0,0.63677]
[1641379803136,0.053501,46744.0,46742.0,0.63677]
[1641379803337,0.076061,46745.0,46742.0,0.63677]
[1641379803836,0.058061,46745.0,46742.0,0.63677]
[1641379804536,0.073061,46745.0,46742.0,0.63677]
[1641379804838,0.073061,46745.0,46742.0,0.63177]
[1641379805236,0.126561,46745.0,46742.0,0.63177]
[1641379805435,0.073061,46745.0,46742.0,0.63177]
[1641379805888,0.058061,46745.0,46742.0,0.63177]
[1641379806090,0.27695911,46744.0,46742.0,0.63177]
[1641379806288,0.33046011,46744.0,46742.0,0.63177]
[1641379806687,0.28193452,46743.0,46742.0,0.63177]
[1641379807088,0.28193452,46743.0,46742.0,0.62677]
[1641379807492,0.38894952,46743.0,46742.0,0.62677]
[1641379807790,0.88894952,46743.0,46742.0,0.62677]
[1641379807991,0.98894952,46743.0,46742.0,0.62677]
[1641379808690,1.05294952,46743.0,46742.0,0.62677]
[1641379808891,1.40805381,46743.0,46742.0,0.62677]
[1641379809558,1.40805381,46743.0,46742.0,0.6214981]
[1641379809758,1.39405381,46743.0,46742.0,0.6212262]
[1641379810163,0.95510429,46743.0,46742.0,0.6209543]
[1641379810458,0.96810429,46743.0,46742.0,0.6209543]
[1641379811262,0.61349229,46743.0,46742.0,0.6209543]
[1641379811458,0.613,46743.0,46742.0,0.6209543]
[1641379811758,0.6,46743.0,46742.0,0.6209543]
[1641379812559,0.613,46743.0,46742.0,0.6209543]
[1641379813789,0.6,46743.0,46742.0,0.6209543]
[1641379814490,0.614,46743.0,46742.0,0.6209543]
[1641379816292,0.6,46743.0,46742.0,0.6209543]
[1641379816492,0.614,46743.0,46742.0,0.6209543]
[1641379816793,0.014,46743.0,46742.0,0.6209543]
[1641379817040,0.014,46743.0,46742.0,1.24927703]
[1641379817239,0.014,46743.0,46742.0,0.9747663]
[1641379817439,0.01656,46743.0,46742.0,1.2431846]
[1641379817844,0.00456,46743.0,46742.0,1.3431846]
[1641379818039,0.00456,46743.0,46742.0,1.2431846]
[1641379818640,0.04356,46743.0,46742.0,1.2481846]
[1641379819840,0.00456,46743.0,46742.0,1.2931846]
[1641379820541,0.05156,46743.0,46742.0,1.2981846]
[1641379821790,0.05156,46743.0,46742.0,1.2931846]
[1641379821992,0.00456,46743.0,46742.0,1.2931846]
[1641379822590,0.01256,46743.0,46742.0,1.3051846]
[1641379822994,0.01256,46743.0,46742.0,1.3551846]
[1641379823793,0.00456,46743.0,46742.0,1.3431846]
[1641379824636,0.01256,46743.0,46742.0,1.3551846]
[1641379824836,0.01256,46743.0,46742.0,1.3051846]
[1641379825739,0.01256,46743.0,46742.0,1.0247663]
[1641379825939,0.00456,46743.0,46742.0,1.0247663]
[1641379826542,0.01156,46743.0,46742.0,1.0377663]
[1641379827740,0.00456,46743.0,46742.0,1.0247663]
[1641379828688,0.01356,46743.0,46742.0,1.0257663]
[1641379829488,0.01356,46743.0,46742.0,0.9757663]
[1641379829890,0.00456,46743.0,46742.0,0.9747663]
[1641379830693,0.01856,46743.0,46742.0,0.9747663]
[1641379831790,0.00456,46743.0,46742.0,0.9747663]
[1641379832636,0.02056,46743.0,46742.0,0.9747663]
[1641379833035,0.02056,46743.0,46742.0,1.30137825]
[1641379833834,0.00456,46743.0,46742.0,1.30137825]
[1641379834634,0.01356,46743.0,46742.0,1.31137825]
[1641379835887,0.00456,46743.0,46742.0,1.30137825]
[1641379836685,0.01356,46743.0,46742.0,1.31237825]
[1641379837989,0.00456,46743.0,46742.0,1.30137825]
[1641379838588,0.01356,46743.0,46742.0,1.31137825]
[1641379840338,0.00456,46743.0,46742.0,1.30137825]
[1641379840739,0.01156,46743.0,46742.0,1.31337825]
[1641379841938,0.00456,46743.0,46742.0,1.30137825]
[1641379842742,0.01256,46743.0,46742.0,1.31237825]
[1641379842941,0.01256,46743.0,46742.0,1.0357663]
[1641379843888,0.00456,46743.0,46742.0,1.0247663]
[1641379844488,0.00456,46743.0,46742.0,1.29953448]
[1641379844690,0.01256,46743.0,46742.0,1.31053448]
[1641379844888,0.01256,46743.0,46742.0,1.0357663]
[1641379845889,0.00456,46743.0,46742.0,1.0247663]
[1641379846690,0.01256,46743.0,46742.0,1.0347663]
[1641379847743,0.01256,46743.0,46742.0,1.31527997]
[1641379847943,0.00456,46743.0,46742.0,1.65527997]
[1641379848543,0.00456,46743.0,46742.0,1.70527997]
[1641379848744,0.01256,46743.0,46742.0,1.36527997]
[1641379849945,0.00456,46743.0,46742.0,1.95095908]
[1641379850786,0.03056,46743.0,46742.0,1.95995908]
[1641379850987,0.03056,46743.0,46742.0,1.36427997]
[1641379851187,0.03056,46743.0,46742.0,1.41064125]
[1641379851388,0.03056,46743.0,46742.0,1.36427997]
[1641379851787,0.03056,46743.0,46742.0,2.37073128]
[1641379851988,0.00456,46743.0,46742.0,2.60963128]
[1641379852588,0.00456,46743.0,46742.0,3.74063128]
[1641379852788,0.03356,46743.0,46742.0,3.7518569]
[1641379853189,0.03356,46743.0,46742.0,2.6208569]
[1641379853388,0.03356,46743.0,46742.0,2.57440559]
[1641379853790,0.03356,46743.0,46742.0,1.92440559]
[1641379853990,0.00456,46743.0,46742.0,1.60440559]
[1641379854642,0.02856,46743.0,46742.0,2.62401331]
[1641379855239,0.02856,46743.0,46742.0,1.41417997]
[1641379856039,0.00456,46743.0,46742.0,1.40317997]
[1641379856639,0.02656,46743.0,46742.0,1.41417997]
[1641379857039,0.02656,46743.0,46742.0,1.31417997]
[1641379857240,0.02656,46743.0,46742.0,1.0336663]
[1641379858042,0.00456,46743.0,46742.0,1.03020827]
[1641379858486,0.00456,46743.0,46742.0,1.3069933]
[1641379858686,0.00456,46743.0,46742.0,1.4349933]
[1641379860287,0.00456,46743.0,46742.0,1.15820827]
[1641379860490,0.00456,46743.0,46742.0,1.08020827]
[1641379860688,0.00456,46743.0,46742.0,1.15820827]
[1641379860888,0.00456,46743.0,46742.0,1.43052957]
[1641379861291,0.00456,46743.0,46742.0,1.48052957]
[1641379861491,0.00456,46743.0,46742.0,1.4729876]
[1641379861690,0.00456,46743.0,46742.0,2.0529876]
[1641379862041,0.00456,46743.0,46742.0,1.9749876]
[1641379862840,0.00456,46743.0,46742.0,2.0499876]
[1641379863640,0.00456,46743.0,46742.0,2.2499876]
[1641379863840,0.00456,46743.0,46742.0,1.6699876]
[1641379864039,0.00456,46743.0,46742.0,1.5949876]
[1641379864641,0.00456,46743.0,46742.0,1.6269876]
[1641379864839,0.00456,46743.0,46742.0,2.0169876]
[1641379865240,6e-05,46743.0,46742.0,2.9169876]
[1641379865443,0.053484,46749.0,46742.0,2.9169876]
[1641379865444,2.31122908,46755.0,46748.0,0.053479]
[1641379865640,0.734035,46768.0,46748.0,0.053479]
[1641379865641,0.01231744,46761.0,46755.0,0.05347814]
[1641379865897,0.053474,46760.0,46756.0,0.0479]
[1641379866090,0.01231744,46761.0,46759.0,0.094015]
[1641379866390,0.5736,46768.0,46759.0,0.094015]
[1641379866391,0.29460323,46772.0,46760.0,1.691689]
[1641379866589,0.28459845,46775.0,46760.0,1.791689]
[1641379866791,0.5,46772.0,46767.0,0.10693163]
[1641379866993,0.213894,46781.0,46768.0,0.04910812]
[1641379867197,0.106913,46779.0,46769.0,0.353812]
[1641379867392,0.29086685,46776.0,46770.0,0.0479]
[1641379867591,0.29086685,46776.0,46771.0,0.756118]
[1641379867790,0.29086685,46776.0,46772.0,0.0479]
[1641379867993,0.29086685,46776.0,46773.0,0.353783]
[1641379868190,0.29086685,46776.0,46773.0,0.106919]
[1641379868393,0.106919,46776.0,46773.0,0.106919]
[1641379868591,0.053457,46776.0,46774.0,0.353812]
[1641379869394,0.053457,46776.0,46775.0,0.0479]
[1641379869651,0.17432662,46792.0,46776.0,0.353796]
[1641379869855,0.00124679,46795.0,46777.0,0.0479]
[1641379870053,0.053447,46785.0,46782.0,0.04893]
[1641379870252,0.053447,46785.0,46783.0,0.401633]
[1641379870451,0.053447,46785.0,46784.0,0.1068922]
[1641379870654,0.053447,46785.0,46784.0,0.2986042]
[1641379870851,0.0515,46787.0,46785.0,1.29]
[1641379871054,0.00537651,46797.0,46786.0,0.44518514]
[1641379871451,0.00124002,46800.0,46790.0,0.10687843]
[1641379871652,0.053439,46794.0,46791.0,0.460547]
[1641379871851,0.27810842,46792.0,46791.0,0.510547]
[1641379872053,0.27810842,46792.0,46791.0,0.106879]
[1641379872253,0.106883,46796.0,46791.0,0.106879]
[1641379872851,0.106883,46796.0,46792.0,0.353812]
[1641379873052,0.106883,46796.0,46791.0,0.106879]
[1641379873053,0.053441,46794.0,46791.0,0.106879]
[1641379873307,0.053441,46794.0,46792.0,0.353812]
[1641379873506,0.053441,46794.0,46791.0,0.206879]
[1641379874105,0.053441,46794.0,46791.0,0.106879]
[1641379874905,0.053441,46794.0,46791.0,0.16032195]
[1641379875110,4.1e-05,46794.0,46791.0,0.43805624]
[1641379875307,0.002,46799.0,46792.0,0.37373312]
[1641379875508,0.002,46799.0,46795.0,0.106867]
[1641379876009,0.002,46799.0,46797.0,0.05]
[1641379876209,0.002,46799.0,46796.0,0.403812]
[1641379876210,0.055434,46799.0,46796.0,0.05]
[1641379876607,0.27872447,46798.0,46796.0,0.05]
[1641379876808,0.055434,46799.0,46797.0,0.05]
[1641379877852,0.39784968,46799.0,46797.0,0.05]
[1641379878254,0.39284968,46799.0,46796.0,0.10343941]
[1641379878551,0.39284968,46799.0,46797.0,0.05]
[1641379878752,0.050434,46799.0,46797.0,0.05]
[1641379879351,0.050434,46799.0,46796.0,0.10343941]
[1641379879953,0.050434,46799.0,46797.0,0.103433]
[1641379880353,0.002,46799.0,46798.0,1.113812]
[1641379880553,0.002,46799.0,46798.0,1.44523583]
[1641379880811,0.002,46799.0,46798.0,0.403812]
[1641379881612,0.002,46799.0,46798.0,0.753812]
[1641379881811,0.002,46799.0,46798.0,0.403812]
[1641379882612,0.002,46799.0,46798.0,0.67899666]
[1641379882815,0.002,46799.0,46798.0,0.68299666]
[1641379883114,0.002,46799.0,46798.0,0.407812]
[1641379883513,0.002,46799.0,46798.0,0.857812]
[1641379884014,0.002,46799.0,46798.0,1.13723521]
[1641379884415,0.002,46799.0,46798.0,1.18513521]
[1641379884653,0.002,46799.0,46798.0,1.81243049]
[1641379884854,0.002,46799.0,46798.0,1.54100728]
[1641379885052,0.002,46799.0,46798.0,2.20287728]
[1641379885250,0.002,46799.0,46798.0,1.67287728]
[1641379885457,0.002,46799.0,46798.0,1.57287728]
[1641379885951,0.002,46799.0,46798.0,1.11487728]
[1641379886754,0.122,46799.0,46798.0,1.12087728]
[1641379887253,0.122,46799.0,46798.0,1.119582]
[1641379888158,0.122,46799.0,46798.0,1.063582]
[1641379888790,0.122,46799.0,46798.0,1.070582]
[1641379889191,0.12029207,46799.0,46798.0,1.070582]
[1641379889590,0.12029207,46799.0,46798.0,1.170582]
[1641379889792,0.12029207,46799.0,46798.0,0.81677]
[1641379889992,0.12029207,46799.0,46798.0,0.80977]
[1641379890396,0.68923847,46799.0,46798.0,1.065682]
[1641379890595,0.12029207,46799.0,46798.0,0.71187]
[1641379890801,0.12029207,46799.0,46798.0,1.065682]
[1641379891898,0.05829207,46799.0,46798.0,1.115682]
[1641379892346,0.05829207,46799.0,46798.0,1.215682]
[1641379892546,0.05829207,46799.0,46798.0,1.115682]
[1641379892947,0.06829207,46799.0,46798.0,1.124682]
[1641379894148,0.05829207,46799.0,46798.0,1.115682]
[1641379894948,0.06829207,46799.0,46798.0,1.124682]
[1641379896204,0.05829207,46799.0,46798.0,1.115682]
[1641379896804,0.06929207,46799.0,46798.0,1.124682]
[1641379897604,0.06429207,46799.0,46798.0,1.124682]
[1641379898004,0.06429207,46799.0,46798.0,1.115682]
[1641379898208,0.05329207,46799.0,46798.0,1.115682]
[1641379898806,0.05929207,46799.0,46798.0,1.127682]
[1641379900646,0.05929207,46799.0,46798.0,1.115682]
[1641379900847,0.06029207,46799.0,46798.0,1.128682]
[1641379901848,0.06029207,46799.0,46798.0,1.40425061]
[1641379902147,0.05329207,46799.0,46798.0,1.115682]
[1641379902648,0.05329207,46799.0,46798.0,1.3874207]
[1641379902846,0.05429207,46799.0,46798.0,1.171682]
[1641379903293,0.05429207,46799.0,46798.0,1.44443833]
[1641379903494,0.05429207,46799.0,46798.0,1.44337744]
[1641379903696,0.05429207,46799.0,46798.0,1.171682]
[1641379904395,0.05429207,46799.0,46798.0,1.4222773]
[1641379904597,0.05429207,46799.0,46798.0,1.146682]
[1641379904797,0.05429207,46799.0,46798.0,1.125682]
[1641379904999,0.05329207,46799.0,46798.0,1.069682]
[1641379906197,0.05329207,46799.0,46798.0,1.015682]
[1641379906599,0.05329207,46799.0,46798.0,0.66187]
[1641379906795,0.05329207,46799.0,46798.0,0.76187]
[1641379907046,0.06829207,46799.0,46798.0,0.76187]
[1641379907447,0.06829207,46799.0,46798.0,1.115682]
[1641379907649,2.27613012,46799.0,46798.0,1.115682]
[1641379907848,2.27613012,46799.0,46798.0,0.76187]
[1641379908049,2.26113012,46799.0,46798.0,0.76187]
[1641379908848,2.27613012,46799.0,46798.0,0.76187]
[1641379909253,2.62994212,46799.0,46798.0,0.66187]
[1641379910253,2.61494212,46799.0,46798.0,0.66187]
[1641379910904,2.62594212,46799.0,46798.0,0.66187]
[1641379911110,2.72594212,46799.0,46798.0,0.66187]
[1641379911310,2.82594212,46799.0,46798.0,0.66187]
[1641379911806,2.82714426,46799.0,46798.0,0.66187]
[1641379912206,2.81614426,46799.0,46798.0,0.66187]
[1641379912407,2.71614426,46799.0,46798.0,0.66187]
[1641379913007,2.72714426,46799.0,46798.0,0.66187]
[1641379913609,3.32714426,46799.0,46798.0,0.66187]
[1641379914207,3.31614426,46799.0,46798.0,0.66187]
[1641379914646,3.36404426,46799.0,46798.0,0.66187]
[1641379914848,3.32175219,46799.0,46798.0,0.66187]
[1641379915148,3.22175219,46799.0,46798.0,0.66187]
[1641379915549,3.32175219,46799.0,46798.0,0.66187]
[1641379916149,3.31075219,46799.0,46798.0,0.66187]
[1641379916749,3.21075219,46799.0,46798.0,0.66187]
[1641379916953,3.22075219,46799.0,46798.0,0.66187]
[1641379918151,3.21075219,46799.0,46798.0,0.66187]
[1641379918997,3.22075219,46799.0,46798.0,0.66187]
[1641379920799,3.11075219,46799.0,46798.0,0.66187]
[1641379921002,3.07265005,46799.0,46798.0,0.66187]
[1641379921600,2.71883805,46799.0,46798.0,0.66187]
[1641379922250,2.70783805,46799.0,46798.0,0.66187]
[1641379922445,2.20783805,46799.0,46798.0,0.66187]
[1641379923045,2.21883805,46799.0,46798.0,0.66187]
[1641379924245,2.20783805,46799.0,46798.0,0.66187]
[1641379925046,2.21883805,46799.0,46798.0,0.66187]
[1641379925447,2.21883805,46799.0,46798.0,1.03104938]
[1641379925448,0.011,46799.0,46798.0,1.03104938]
[1641379925647,0.011,46799.0,46798.0,1.115682]
[1641379926098,0.011,46799.0,46798.0,1.435682]
[1641379926599,0.053432,46803.0,46800.0,0.10686169]
[1641379926798,0.053432,46803.0,46801.0,0.093564]
[1641379927000,0.053432,46803.0,46801.0,0.143564]
[1641379927197,0.053432,46803.0,46801.0,0.193564]
[1641379927600,0.053432,46803.0,46801.0,0.1]
[1641379927800,0.053432,46803.0,46801.0,0.05]
[1641379927999,0.053432,46803.0,46800.0,0.053431]
[1641379928900,0.064432,46803.0,46800.0,0.053431]
[1641379929100,0.117868,46803.0,46800.0,0.053431]
[1641379929755,0.30101045,46802.0,46798.0,0.715311]
[1641379929959,0.35445245,46802.0,46798.0,0.715311]
[1641379930354,0.053442,46801.0,46798.0,0.715311]
[1641379931054,0.064442,46801.0,46798.0,0.815311]
[1641379931654,0.064442,46801.0,46799.0,0.05344]
[1641379931859,0.05344,46800.0,46799.0,0.05344]
[1641379932056,0.05344,46800.0,46799.0,0.10344]
[1641379932256,0.05344,46800.0,46799.0,0.05344]
[1641379932461,0.37918452,46805.0,46799.0,0.3361961]
[1641379932462,0.053433,46805.0,46799.0,0.3361961]
[1641379932756,0.106865,46810.0,46801.0,0.053429]
[1641379932757,0.01232411,46806.0,46801.0,0.053429]
[1641379932956,0.015,46805.0,46801.0,0.053429]
[1641379933157,0.015,46805.0,46802.0,0.453812]
[1641379933396,0.015,46805.0,46803.0,0.05342656]
[1641379933597,0.015,46805.0,46804.0,0.093522]
[1641379933796,0.015,46805.0,46804.0,0.143522]
[1641379933998,0.015,46805.0,46803.0,0.05342656]
[1641379934199,0.055428,46809.0,46803.0,0.05342656]
[1641379934399,0.055428,46809.0,46805.0,0.05342843]
[1641379934601,0.053429,46808.0,46805.0,0.05342843]
[1641379935001,0.053429,46808.0,46805.0,0.10342843]
[1641379936001,0.053429,46808.0,46807.0,0.053429]
[1641379937046,0.070429,46808.0,46807.0,0.053429]
[1641379938851,0.053429,46808.0,46807.0,0.053429]
[1641379939050,0.066429,46808.0,46807.0,0.103429]
[1641379940155,0.420241,46808.0,46807.0,0.053429]
[1641379940355,0.70670008,46808.0,46798.0,0.768741]
[1641379940554,0.15344,46807.0,46798.0,0.768741]
[1641379940820,0.23327282,46799.0,46798.0,0.768741]
[1641379941218,0.23327282,46799.0,46798.0,0.66187]
[1641379941619,2.24672961,46799.0,46798.0,0.66187]
[1641379941819,2.60054161,46799.0,46798.0,0.66187]
[1641379942017,0.58708482,46799.0,46798.0,0.66187]
[1641379942420,0.106882,46800.0,46798.0,0.66187]
[1641379942619,0.053442,46800.0,46798.0,0.76187]
[1641379942822,0.053431,46803.0,46799.0,0.353812]
[1641379943021,0.036,46800.0,46799.0,0.353812]
[1641379943218,0.036,46800.0,46799.0,0.355033]
[1641379943519,0.036,46800.0,46799.0,0.408461]
[1641379943920,0.036,46800.0,46799.0,0.898461]
[1641379944322,0.01232414,46805.0,46799.0,0.408461]
[1641379944551,0.053429,46804.0,46801.0,0.1068598]
[1641379944751,0.01232414,46805.0,46800.0,0.10685759]
[1641379944951,0.01232414,46805.0,46801.0,0.1]
[1641379945152,0.017,46804.0,46801.0,0.1]
[1641379945854,0.017,46804.0,46803.0,0.05342954]
[1641379946052,0.017,46804.0,46803.0,1.18724154]
[1641379946351,0.01232414,46805.0,46803.0,1.18724154]
[1641379946352,0.002,46809.0,46804.0,0.10684855]
[1641379946751,0.002,46809.0,46804.0,0.15684855]
[1641379947152,0.037,46809.0,46804.0,0.15684855]
[1641379947654,0.037,46809.0,46805.0,0.05342428]
[1641379947856,0.037,46809.0,46806.0,0.053424]
[1641379948053,0.037,46809.0,46806.0,0.103424]
[1641379948299,0.002,46809.0,46806.0,0.103424]
[1641379948503,0.002,46809.0,46806.0,0.1]
[1641379949099,0.037,46809.0,46806.0,0.10342544]
[1641379949498,0.037,46809.0,46806.0,0.15342544]
[1641379949900,0.037,46809.0,46807.0,0.053425]
[1641379950403,0.002,46809.0,46807.0,0.053425]
[1641379951000,0.032,46809.0,46807.0,0.053425]
[1641379951602,0.085428,46809.0,46807.0,0.053425]
[1641379951802,0.65327108,46808.0,46807.0,0.053425]
[1641379952052,0.80117108,46808.0,46807.0,0.053425]
[1641379952254,0.80117108,46808.0,46801.0,0.106874]
[1641379952453,0.30112702,46799.0,46791.0,0.0012494]
[1641379952651,0.40112702,46799.0,46790.0,0.9639]
[1641379952851,0.8709384,46799.0,46790.0,0.9639]
[1641379953053,0.8819384,46799.0,46790.0,0.9639]
[1641379953249,1.2357504,46799.0,46790.0,0.9639]
[1641379953850,1.2357504,46799.0,46797.0,0.053445]
[1641379954250,1.2891954,46799.0,46797.0,0.053445]
[1641379955052,1.2901954,46799.0,46798.0,0.76187]
[1641379955253,1.2367504,46799.0,46798.0,0.76187]
[1641379955897,0.66460809,46799.0,46798.0,0.76187]
[1641379956105,0.012,46799.0,46798.0,0.76187]
[1641379956298,0.01232414,46805.0,46798.0,0.76187]
[1641379956299,0.01232414,46805.0,46798.0,1.115565]
[1641379956599,0.01232414,46805.0,46801.0,0.053429]
[1641379956797,0.01232414,46805.0,46798.0,0.76187]
[1641379956998,0.01232414,46805.0,46799.0,0.353695]
[1641379957197,0.03732414,46805.0,46799.0,0.353695]
[1641379957398,2.20967011,46800.0,46799.0,0.353695]
[1641379957599,2.20967011,46800.0,46799.0,0.160284]
[1641379957901,0.03732414,46805.0,46799.0,0.160284]
[1641379958305,0.01232414,46805.0,46799.0,0.160284]
[1641379958601,0.01232414,46805.0,46801.0,0.05342689]
[1641379958799,0.01232414,46805.0,46800.0,0.160281]
[1641379959201,0.02932414,46805.0,46801.0,0.05]
[1641379959400,0.053434,46803.0,46801.0,0.05]
[1641379959851,0.053434,46803.0,46801.0,0.10343595]
[1641379961051,0.068434,46803.0,46801.0,0.10343595]
[1641379961253,0.121869,46803.0,46801.0,0.10343595]
[1641379962453,0.053434,46803.0,46801.0,0.10343595]
[1641379962855,0.053432,46806.0,46801.0,0.10464437]
[1641379963055,0.002,46809.0,46804.0,0.05342707]
[1641379963056,0.29896302,46805.0,46804.0,0.05342707]
[1641379963304,0.002,46809.0,46802.0,0.053427]
[1641379963506,0.002,46809.0,46802.0,0.103427]
[1641379963703,0.27172429,46809.0,46802.0,0.103427]
[1641379963905,0.28288205,46803.0,46802.0,0.053427]